bitfinex-derivatives/quotes_BNBF0:USTF0_20250302
["timestamp","ask_amount","ask_price","bid_price","bid_amount"]
[1740923211432,1.59590546,606.83,605.92,5.74507657]
[1740923211632,1.59590546,606.82,605.92,5.74507657]
[1740923211834,1.59590546,606.81,605.92,5.74507657]
[1740923212035,1.59590546,606.8,605.92,5.74507657]
[1740923212229,2.72326402,606.79,605.92,5.74507657]
[1740923212433,1.59590546,606.78,605.92,5.74507657]
[1740923212731,1.12735856,606.77,605.92,5.74507657]
[1740923213135,1.12735856,606.76,605.92,5.74507657]
[1740923213336,2.72326402,606.75,605.92,5.74507657]
[1740923213531,1.59590546,606.74,605.92,5.74507657]
[1740923213731,1.12735856,606.73,605.92,5.74507657]
[1740923213932,2.72326402,606.73,605.92,5.74507657]
[1740923214130,2.72326402,606.72,605.92,5.74507657]
[1740923214331,1.59590546,606.71,605.92,5.74507657]
[1740923214531,1.12735856,606.72,605.92,5.74507657]
[1740923214731,1.12735856,606.7,605.92,5.74507657]
[1740923215335,1.12735856,606.69,605.92,5.74507657]
[1740923215939,1.12735856,606.68,605.92,5.74507657]
[1740923216235,1.59310901,606.67,605.92,5.74507657]
[1740923216640,1.12735856,606.66,605.92,5.74507657]
[1740923216840,1.12735856,606.65,605.92,5.74507657]
[1740923217040,2.72046757,606.65,605.92,5.74507657]
[1740923217239,1.59310901,606.64,605.92,5.74507657]
[1740923217841,1.12735856,606.65,605.92,5.74507657]
[1740923218141,1.12735856,606.63,605.92,5.74507657]
[1740923218337,1.12735856,606.62,605.92,5.74507657]
[1740923218741,1.12735856,606.61,605.92,5.74507657]
[1740923219143,1.12735856,606.6,605.92,5.74507657]
[1740923219542,1.12735856,606.59,605.92,5.74507657]
[1740923219937,2.7197475,606.59,605.92,5.74507657]
[1740923220139,2.7197475,606.58,605.92,5.74507657]
[1740923220335,1.59238894,606.57,605.92,5.74507657]
[1740923220736,1.12735856,606.56,605.92,5.74507657]
[1740923221238,1.12735856,606.55,605.92,5.74507657]
[1740923221643,1.12735856,606.54,605.92,5.74507657]
[1740923224539,1.12735856,606.63,605.92,5.74507657]
[1740923224938,1.12735856,606.62,605.92,5.74507657]
[1740923225544,1.12735856,606.65,605.92,5.74507657]
[1740923226347,1.12735856,606.64,605.92,5.74507657]
[1740923227044,1.12735856,606.63,605.92,5.74507657]
[1740923227550,1.12735856,606.62,605.92,5.74507657]
[1740923228345,1.12735856,606.61,605.92,5.74507657]
[1740923228947,1.12735856,606.6,605.92,5.74507657]
[1740923229545,1.12735856,606.59,605.92,5.74507657]
[1740923229946,1.12735856,606.58,605.92,5.74507657]
[1740923230447,1.12735856,606.57,605.92,5.74507657]
[1740923230854,1.12735856,606.56,605.92,5.74507657]
[1740923231251,1.72189144,606.75,605.92,5.74507657]
[1740923231456,3.02193423,606.74,605.92,5.74507657]
[1740923231648,4.14929279,606.73,605.92,5.74507657]
[1740923231850,3.02193423,606.72,605.92,5.74507657]
[1740923232046,2.72310804,606.71,605.92,5.74507657]
[1740923232254,1.59574948,606.7,605.92,5.74507657]
[1740923232452,1.12735856,606.71,605.92,5.74507657]
[1740923232646,4.15170984,606.7,605.92,5.74507657]
[1740923232849,3.02435128,606.69,605.92,5.74507657]
[1740923233047,1.59702237,606.68,605.92,5.74507657]
[1740923233247,1.59702237,606.67,605.92,5.74507657]
[1740923233452,2.72438093,606.66,605.92,5.74507657]
[1740923233753,2.72438093,606.65,605.92,5.74507657]
[1740923233947,1.59702237,606.64,605.92,5.74507657]
[1740923234148,1.59702237,606.63,605.92,5.74507657]
[1740923234350,1.59702237,606.62,605.92,5.74507657]
[1740923234547,1.59702237,606.61,605.92,5.74507657]
[1740923234747,1.12735856,606.61,605.92,5.74507657]
[1740923235149,1.12735856,606.6,605.92,5.74507657]
[1740923235655,1.12735856,606.59,605.92,5.74507657]
[1740923236155,1.12735856,606.58,605.92,5.74507657]
[1740923236354,1.12735856,606.57,605.92,5.74507657]
[1740923236857,1.12735856,606.56,605.92,5.74507657]
[1740923237056,3.02702335,606.74,605.92,5.74507657]
[1740923237354,1.72187014,606.75,605.92,5.74507657]
[1740923237355,3.02702335,606.73,605.92,5.74507657]
[1740923237555,3.02702335,606.72,605.92,5.74507657]
[1740923237755,3.02734457,606.71,605.92,5.74507657]
[1740923237956,3.02734457,606.7,605.92,5.74507657]
[1740923238151,3.02734457,606.69,605.92,5.74507657]
[1740923238355,1.59844276,606.68,605.92,5.74507657]
[1740923238556,1.59844276,606.67,605.92,5.74507657]
[1740923238751,2.72731101,606.66,605.92,5.74507657]
[1740923239057,2.72731101,606.65,605.92,5.74507657]
[1740923239257,1.59844276,606.64,605.92,5.74507657]
[1740923239452,1.12886825,606.65,605.92,5.74507657]
[1740923239453,1.59844276,606.63,605.92,5.74507657]
[1740923239652,2.72731101,606.62,605.92,5.74507657]
[1740923239957,2.72731101,606.61,605.92,5.74507657]
[1740923240158,1.12886825,606.61,605.92,5.74507657]
[1740923240560,2.72908666,606.6,605.92,5.74507657]
[1740923240756,1.12886825,606.6,605.92,5.74507657]
[1740923241054,1.12886825,606.59,605.92,5.74507657]
[1740923241560,1.12886825,606.58,605.92,5.74507657]
[1740923241761,1.12886825,606.57,605.92,5.74507657]
[1740923242355,1.12886825,606.56,605.92,5.74507657]
[1740923242757,1.12886825,606.55,605.92,5.74507657]
[1740923243455,1.12886825,606.54,605.92,5.74507657]
[1740923243965,3.03070234,606.67,605.92,5.74507657]
[1740923244160,3.03070234,606.66,605.92,5.74507657]
[1740923244361,3.03088025,606.65,605.92,5.74507657]
[1740923244560,2.73072265,606.64,605.92,5.74507657]
[1740923244763,1.60037622,606.63,605.92,5.74507657]
[1740923245056,1.13034643,606.63,605.92,5.74507657]
[1740923245459,1.13034643,606.62,605.92,5.74507657]
[1740923246062,1.13034643,606.61,605.92,5.74507657]
[1740923246465,1.13034643,606.6,605.92,5.74507657]
[1740923247164,1.13034643,606.59,605.92,5.74507657]
[1740923247364,1.13034643,606.58,605.92,5.74507657]
[1740923247865,1.13034643,606.57,605.92,5.74507657]
[1740923248667,1.13034643,606.56,605.92,5.74507657]
[1740923249166,3.03107765,606.79,605.92,5.74507657]
[1740923249366,3.03107765,606.78,605.92,5.74507657]
[1740923249566,3.03107765,606.77,605.92,5.74507657]
[1740923249768,1.13031441,606.78,605.92,5.74507657]
[1740923249769,3.03107765,606.76,605.92,5.74507657]
[1740923249963,3.03107765,606.75,605.92,5.74507657]
[1740923250164,3.03107765,606.74,605.92,5.74507657]
[1740923250466,4.16139206,606.73,605.92,5.74507657]
[1740923250670,3.03107765,606.72,605.92,5.74507657]
[1740923250862,3.03107765,606.71,605.92,5.74507657]
[1740923251065,3.03107765,606.7,605.92,5.74507657]
[1740923251261,3.03107765,606.69,605.92,5.74507657]
[1740923251474,1.72169267,606.85,605.92,5.74507657]
[1740923251475,4.16139206,606.68,605.92,5.74507657]
[1740923251774,3.03107765,606.67,605.92,5.74507657]
[1740923251971,1.60058101,606.66,605.92,5.74507657]
[1740923252176,1.60058347,606.65,605.92,5.74507657]
[1740923252377,1.60058347,606.64,605.92,5.74507657]
[1740923252579,1.13031441,606.64,605.92,5.74507657]
[1740923253477,1.13031441,606.63,605.92,5.74507657]
[1740923253778,1.13031441,606.62,605.92,5.74507657]
[1740923254472,1.13031441,606.61,605.92,5.74507657]
[1740923254878,1.13031441,606.6,605.92,5.74507657]
[1740923255579,1.13031441,606.59,605.92,5.74507657]
[1740923256582,2.7304031,606.58,605.92,5.74507657]
[1740923256874,3.03036986,606.57,605.92,5.74507657]
[1740923257082,3.03036986,606.56,605.92,5.74507657]
[1740923257277,1.60008869,606.55,605.92,5.74507657]
[1740923257473,1.13031441,606.57,605.92,5.74507657]
[1740923257678,1.13031441,606.54,605.92,5.74507657]
[1740923257880,3.02995922,606.53,605.92,5.74507657]
[1740923258079,1.59997434,606.52,605.92,5.74507657]
[1740923258280,1.59997434,606.51,605.92,5.74507657]
[1740923258480,1.59997434,606.5,605.92,5.74507657]
[1740923258680,1.59997434,606.49,605.92,5.74507657]
[1740923258878,1.59997434,606.48,605.92,5.74507657]
[1740923259081,1.13031441,606.49,605.92,5.74507657]
[1740923259277,1.59962229,606.48,605.92,5.74507657]
[1740923259479,1.59962229,606.47,605.92,5.74507657]
[1740923259676,1.59962229,606.46,605.92,5.74507657]
[1740923259877,1.59954253,606.48,605.92,5.74507657]
[1740923260083,1.13031441,606.45,605.92,5.74507657]
[1740923260582,1.13031441,606.44,605.92,5.74507657]
[1740923260783,1.13031441,606.43,605.92,5.74507657]
[1740923261282,1.59914684,606.42,605.92,5.74507657]
[1740923261479,2.72946125,606.41,605.92,5.74507657]
[1740923261687,1.59914684,606.4,605.92,5.74507657]
[1740923261883,1.5985764,606.39,605.92,5.74507657]
[1740923262088,1.5985764,606.38,605.92,5.74507657]
[1740923262278,1.5985764,606.37,605.92,5.74507657]
[1740923262478,1.13031441,606.36,605.92,5.74507657]
[1740923263282,1.13031441,606.35,605.92,5.74507657]
[1740923263485,1.59813613,606.34,605.92,5.74507657]
[1740923263685,2.72845054,606.33,605.92,5.74507657]
[1740923263884,1.59813613,606.32,605.92,5.74507657]
[1740923264085,1.59813613,606.31,605.92,5.74507657]
[1740923264286,1.13031441,606.31,605.92,5.74507657]
[1740923264486,1.13031441,606.3,605.92,5.74507657]
[1740923264881,1.13031441,606.29,605.92,3.40107657]
[1740923265082,1.13031441,606.29,605.92,0.33007657]
[1740923265395,1.13031441,606.28,605.92,0.33007657]
[1740923265887,1.13031441,606.27,605.92,0.33007657]
[1740923266689,1.13031441,606.26,605.92,0.33007657]
[1740923267086,1.13031441,606.25,605.92,0.33007657]
[1740923267781,3.02326381,606.52,605.92,0.33007657]
[1740923268090,3.02326381,606.51,605.92,0.33007657]
[1740923268288,4.15070537,606.5,605.92,3.47007657]
[1740923268489,3.02326381,606.49,605.92,3.47007657]
[1740923268691,1.59638217,606.48,605.92,3.47007657]
[1740923268983,1.59638217,606.47,605.92,3.47007657]
[1740923269192,1.59638217,606.46,605.92,3.47007657]
[1740923269392,1.59638217,606.45,605.92,3.47007657]
[1740923269590,1.59638217,606.44,605.92,3.47007657]
[1740923269788,1.59638217,606.43,605.92,3.47007657]
[1740923269988,1.59638217,606.42,605.92,3.47007657]
[1740923270188,1.59638217,606.41,605.92,3.47007657]
[1740923270587,2.72382373,606.4,605.92,3.47007657]
[1740923270786,1.59638217,606.39,605.92,3.47007657]
[1740923270990,1.59638217,606.38,605.92,3.47007657]
[1740923271191,1.59638217,606.37,605.92,3.47007657]
[1740923271391,1.59638217,606.36,605.92,3.47007657]
[1740923271592,1.59638217,606.35,605.92,3.47007657]
[1740923271795,1.12744156,606.35,605.92,3.47007657]
[1740923272295,2.72311246,606.35,605.92,3.47007657]
[1740923272490,2.72311246,606.34,605.92,3.47007657]
[1740923272695,1.5956709,606.33,605.92,3.47007657]
[1740923272895,2.72311246,606.33,605.92,3.47007657]
[1740923273200,1.5956709,606.32,605.92,3.47007657]
[1740923273495,1.12744156,606.33,605.92,3.47007657]
[1740923273698,1.12744156,606.31,605.92,3.47007657]
[1740923274095,1.59445131,606.3,605.92,3.47007657]
[1740923274295,1.59445131,606.29,605.92,3.47007657]
[1740923274495,2.72189287,606.29,605.92,3.47007657]
[1740923274691,3.31726623,606.28,605.92,3.47007657]
[1740923274995,4.14877451,606.27,605.92,3.47007657]
[1740923275298,1.59445131,606.26,605.92,3.47007657]
[1740923275498,1.59445131,606.25,605.92,3.47007657]
[1740923275697,1.59445131,606.24,605.92,3.47007657]
[1740923275894,1.59445131,606.23,605.92,3.47007657]
[1740923276096,1.12744156,606.23,605.92,3.47007657]
[1740923276298,2.72189287,606.23,605.92,3.47007657]
[1740923276499,2.72189287,606.22,605.92,3.47007657]
[1740923276698,1.59445131,606.21,605.92,3.47007657]
[1740923276902,1.12744156,606.2,605.92,3.47007657]
[1740923277303,1.12744156,606.19,605.92,3.47007657]
[1740923277902,1.12744156,606.18,605.92,3.47007657]
[1740923278299,1.12744156,606.17,605.92,3.47007657]
[1740923278900,1.12744156,606.16,605.92,3.14]
[1740923279105,1.12744156,606.15,605.92,3.14]
[1740923280207,1.42087662,606.21,605.92,3.14]
[1740923280208,1.12744156,606.14,605.92,3.14]
[1740923280606,1.12744156,606.13,605.92,3.14]
[1740923281008,2.71581179,606.13,605.92,3.14]
[1740923281207,1.12744156,606.13,605.92,3.14]
[1740923282111,1.12744156,606.12,605.92,3.14]
[1740923282500,1.12744156,606.15,605.92,3.14]
[1740923283411,1.12744156,606.14,605.92,3.14]
[1740923283601,1.12744156,606.13,605.92,3.14]
[1740923284006,2.71411483,606.14,605.92,3.14]
[1740923284204,1.72302817,606.17,605.92,3.14]
[1740923284205,1.58650289,606.13,605.92,3.14]
[1740923284407,1.12068364,606.13,605.92,1.562]
[1740923285112,1.58650289,606.16,605.92,1.562]
[1740923285113,1.12068364,606.15,605.92,1.562]
[1740923285312,1.12068364,606.12,605.92,1.562]
[1740923285705,1.12068364,606.11,605.92,1.562]
[1740923286112,1.12068364,606.1,605.92,1.562]
[1740923286412,1.12068364,606.09,605.92,1.562]
[1740923286805,1.72326992,606.08,605.92,1.562]
[1740923287005,1.12068364,606.07,605.92,1.562]
[1740923287206,2.70459318,606.07,605.92,1.562]
[1740923287404,2.70459318,606.07,604.47,1.23544932]
[1740923287610,1.12068364,606.06,605.69,1.579]
[1740923287912,1.12068364,606.05,605.69,1.579]
[1740923288512,1.12068364,606.04,605.69,1.579]
[1740923289113,1.12068364,606.03,605.69,1.579]
[1740923289713,1.12068364,606.07,605.69,1.579]
[1740923290214,1.72326992,606.08,605.69,1.579]
[1740923290612,1.72326992,606.08,605.7,1.406]
[1740923291717,1.12068364,606.07,605.7,1.406]
[1740923292015,2.70234752,606.07,605.7,1.406]
[1740923292212,2.70234752,606.06,605.7,1.406]
[1740923292413,1.58166388,606.05,605.7,1.406]
[1740923292618,1.12068364,606.06,605.7,1.406]
[1740923292813,1.72346906,606.04,605.7,1.406]
[1740923293214,4.42046276,606.04,605.7,1.406]
[1740923293412,1.58048754,606.03,605.7,1.406]
[1740923293715,2.6969937,606.03,605.7,1.406]
[1740923295319,4.10896377,606.03,605.7,1.406]
[1740923295515,2.6969937,606.03,605.7,1.406]
[1740923295714,4.42046276,606.02,605.7,1.406]
[1740923295913,1.58048754,606.01,605.7,1.406]
[1740923296114,1.11650616,606.0,605.7,1.406]
[1740923296823,1.11650616,605.99,605.7,1.406]
[1740923297424,1.11650616,605.98,605.7,1.406]
[1740923297718,1.11650616,606.0,605.7,1.406]
[1740923298624,1.11650616,605.99,605.7,1.406]
[1740923298823,2.84009615,605.99,605.7,1.406]
[1740923299026,1.5780679,605.98,605.7,1.406]
[1740923299623,2.69457406,605.98,605.7,1.406]
[1740923300020,1.11650616,605.98,605.7,1.406]
[1740923300622,2.69315235,606.1,605.7,1.406]
[1740923300921,4.10391452,606.1,605.7,1.406]
[1740923301126,1.41076217,606.09,605.7,1.406]
[1740923301327,1.11507186,606.09,605.7,1.406]
[1740923301721,4.10320511,606.08,605.7,1.406]
[1740923301922,3.95597752,606.07,605.7,1.406]
[1740923302227,5.37457778,606.06,605.7,1.406]
[1740923302422,3.29166165,606.05,605.7,1.406]
[1740923302624,0.96784427,606.03,605.7,1.406]
[1740923302823,3.29166165,606.02,605.7,1.406]
[1740923303022,3.29166165,606.01,605.7,1.406]
[1740923303224,2.98813325,606.0,605.7,1.406]
[1740923303425,1.57808049,605.99,605.7,1.406]
[1740923303621,1.57808049,605.98,605.7,1.406]
[1740923303829,1.57808049,605.97,605.7,1.406]
[1740923304027,2.69315235,605.96,605.7,1.406]
[1740923304225,1.57808049,605.95,605.7,1.406]
[1740923304531,1.11507186,605.96,605.7,1.406]
[1740923304728,1.72382478,605.94,605.7,1.406]
[1740923305226,4.70914839,605.94,605.7,1.406]
[1740923305532,4.10039547,605.93,605.7,1.406]
[1740923306030,1.11507186,605.92,605.7,1.406]
[1740923306628,1.11507186,605.91,605.69,1.579]
[1740923307424,2.69114024,605.9,605.69,1.579]
[1740923307627,1.57606838,605.89,605.69,1.579]
[1740923307823,1.57606838,605.88,605.69,1.579]
[1740923308025,1.57606838,605.87,605.69,1.579]
[1740923308231,1.57606838,605.86,605.69,1.579]
[1740923308432,1.57606838,605.85,605.69,1.579]
[1740923308631,1.57445279,605.84,605.69,1.579]
[1740923308833,1.57445279,605.83,605.69,1.579]
[1740923309029,1.11507186,605.82,605.69,1.579]
[1740923309828,1.11507186,605.81,605.69,1.579]
[1740923310433,1.11507186,605.8,605.69,1.579]
[1740923311033,1.11507186,605.88,605.69,1.579]
[1740923311435,1.11507186,605.87,605.69,1.579]
[1740923311936,1.11507186,605.86,605.69,1.579]
[1740923312436,1.11507186,605.85,605.69,1.579]
[1740923312641,1.11507186,605.85,605.67,0.558]
[1740923313030,2.98216922,605.89,605.67,0.558]
[1740923313031,1.11507186,605.84,605.67,0.558]
[1740923313631,1.11507186,605.83,605.67,0.558]
[1740923314234,1.11507186,605.82,605.67,0.558]
[1740923314838,1.11507186,605.88,605.67,0.558]
[1740923315136,1.11507186,605.87,605.67,0.558]
[1740923315731,1.11507186,605.86,605.67,0.558]
[1740923316333,1.11507186,605.85,605.67,0.558]
[1740923316733,1.11507186,605.84,605.67,0.558]
[1740923317334,1.11507186,605.84,605.49,1.419]
[1740923317534,1.11507186,605.83,605.49,1.419]
[1740923317733,1.11507186,605.82,605.49,1.419]
[1740923318140,1.11507186,605.81,605.49,1.419]
[1740923318534,1.11507186,605.8,605.49,1.419]
[1740923319137,2.99119795,605.84,605.49,1.419]
[1740923319338,1.57927072,605.83,605.49,1.419]
[1740923319534,1.11507186,605.82,605.49,1.419]
[1740923319940,1.11507186,605.81,605.49,1.419]
[1740923320339,1.11507186,605.8,605.49,1.419]
[1740923321040,1.11507186,605.84,605.49,1.419]
[1740923321541,1.11507186,605.83,605.49,1.419]
[1740923322336,1.11507186,605.82,605.49,1.419]
[1740923322740,1.11507186,605.81,605.49,1.419]
[1740923323338,1.11507186,605.8,605.49,1.419]
[1740923323644,1.11507186,605.79,605.49,1.419]
[1740923323838,2.69540074,605.79,605.49,1.419]
[1740923324043,1.11507186,605.84,605.49,1.419]
[1740923324743,1.11507186,605.83,605.49,1.419]
[1740923325340,1.11507186,605.82,605.49,1.419]
[1740923325943,1.11507186,605.81,605.49,1.419]
[1740923326539,1.11507186,605.8,605.49,1.419]
[1740923326744,1.11507186,605.79,605.49,1.419]
[1740923327039,1.11507186,605.78,605.49,1.419]
[1740923327644,1.58353156,605.88,605.49,1.419]
[1740923327645,1.11507186,605.87,605.49,1.419]
[1740923328142,1.11507186,605.86,605.49,1.419]
[1740923328540,1.11507186,605.85,605.49,1.419]
[1740923329342,5.3137049,611.38,605.49,1.419]
[1740923329343,1.11507186,606.02,605.49,1.419]
[1740923329939,1.11507186,606.01,605.49,1.419]
[1740923330343,1.11507186,606.0,605.49,1.419]
[1740923330740,1.11507186,605.99,605.49,1.419]
[1740923331151,1.11507186,605.98,605.49,1.419]
[1740923331845,1.11507186,605.97,605.49,1.419]
[1740923332046,1.11507186,605.97,605.5,1.556]
[1740923332242,1.11507186,605.96,605.5,1.556]
[1740923332748,1.11507186,605.95,605.5,1.556]
[1740923333249,1.11507186,605.94,605.5,1.556]
[1740923334249,1.11507186,605.93,605.5,1.556]
[1740923334651,1.11507186,605.92,605.5,1.556]
[1740923335255,1.11507186,605.91,605.5,1.556]
[1740923335755,1.11507186,605.9,605.51,1.96]
[1740923336153,1.5903585,606.04,605.51,1.96]
[1740923337157,1.11507186,606.03,605.51,1.96]
[1740923337754,1.11507186,606.02,605.51,1.96]
[1740923338554,1.11507186,606.01,605.51,1.96]
[1740923338955,1.11507186,606.0,605.51,1.96]
[1740923339157,2.70607334,606.0,605.51,1.96]
[1740923339363,2.70607334,605.99,605.51,1.96]
[1740923339563,1.59100148,605.98,605.51,1.96]
[1740923339863,1.11507186,605.98,605.52,1.58]
[1740923340259,1.11507186,605.97,605.52,1.58]
[1740923340672,1.11507186,605.96,605.52,1.58]
[1740923341467,1.11507186,605.95,605.52,1.58]
[1740923342070,1.11507186,605.94,605.52,1.58]
[1740923342468,1.11507186,605.93,605.52,1.58]
[1740923343064,1.11507186,605.92,605.52,1.58]
[1740923343467,1.11507186,605.91,605.52,1.58]
[1740923343768,1.42452607,606.1,605.52,1.58]
[1740923343769,1.11507186,605.9,605.52,1.58]
[1740923343969,1.11507186,605.89,605.52,1.58]
[1740923346470,1.11507186,605.88,605.52,1.58]
[1740923346867,1.11507186,605.87,605.52,1.58]
[1740923347471,1.11507186,605.86,605.52,1.58]
[1740923348076,1.11507186,605.85,605.52,1.58]
[1740923348674,1.11507186,605.84,605.52,1.58]
[1740923348970,1.59347414,605.83,605.52,1.58]
[1740923349170,1.59347414,605.82,605.52,1.58]
[1740923349374,2.708546,605.81,605.52,1.58]
[1740923349575,1.59347414,605.8,605.52,1.58]
[1740923349771,2.708546,605.79,605.52,1.58]
[1740923349970,1.59347414,605.78,605.52,1.58]
[1740923350171,0.97645989,605.91,605.52,1.58]
[1740923350172,2.708546,605.77,605.52,1.58]
[1740923350373,1.59347414,605.76,605.52,1.58]
[1740923350573,1.59347414,605.75,605.52,1.58]
[1740923350773,1.59347414,605.74,605.52,1.58]
[1740923351070,1.59347414,605.73,605.52,1.58]
[1740923351273,2.708546,605.72,605.52,1.58]
[1740923351468,1.59347414,605.71,605.52,1.58]
[1740923351674,1.59347414,605.7,605.52,1.58]
[1740923351975,1.59347414,605.69,605.52,1.58]
[1740923352276,1.59347414,605.68,605.52,1.58]
[1740923352469,2.708546,605.67,605.52,1.58]
[1740923352677,1.59347414,605.66,605.52,1.58]
[1740923353275,1.11507186,605.65,605.52,1.58]
[1740923353570,1.59347414,605.64,605.52,1.58]
[1740923353779,1.59347414,605.63,605.52,1.58]
[1740923353973,1.59347414,605.62,605.52,1.58]
[1740923354173,1.59347414,605.61,605.52,1.58]
[1740923354370,1.59347414,605.6,605.52,1.58]
[1740923354573,2.708546,605.59,605.52,1.58]
[1740923354774,1.59347414,605.58,605.52,1.58]
[1740923354976,1.59347414,605.57,605.52,1.58]
[1740923355178,1.59347414,605.56,605.52,1.58]
[1740923355373,1.59347414,605.55,605.52,1.58]
[1740923355575,1.59347414,605.54,605.52,1.58]
[1740923355974,2.708546,605.53,605.52,1.58]
[1740923356376,1.11507186,605.53,605.52,1.58]
[1740923357279,2.708546,605.53,605.52,1.58]
[1740923358880,4.43332483,605.53,605.52,1.58]
[1740923360075,5.8578742,605.53,605.52,1.58]
[1740923360481,4.43332483,605.53,605.52,1.58]
[1740923360676,5.85492536,605.53,605.52,1.58]
[1740923361678,4.13014653,605.53,605.52,1.58]
[1740923361879,5.85502509,605.53,605.52,1.58]
[1740923362484,5.84980598,605.53,605.52,1.58]
[1740923362783,6.15359239,605.53,605.52,1.58]
[1740923363386,5.84980598,605.53,605.4,1.497]
[1740923363582,0.97273219,605.51,605.4,1.497]
[1740923363783,3.00985556,605.5,605.4,1.497]
[1740923363984,3.00985556,605.49,605.4,1.497]
[1740923364183,3.98258775,605.48,605.4,1.497]
[1740923364380,3.00801873,605.47,605.4,1.497]
[1740923364589,3.00801873,605.46,605.4,1.497]
[1740923364885,2.70149006,605.45,605.4,1.497]
[1740923365081,1.5864182,605.44,605.4,1.497]
[1740923365285,1.5864182,605.43,605.4,1.497]
[1740923365586,1.5864182,605.42,605.4,1.497]
[1740923365884,1.5864182,605.41,605.4,1.497]
[1740923366579,1.09832417,605.41,605.4,1.497]
[1740923366785,2.68360142,605.41,605.4,1.497]
[1740923367780,4.40885054,605.41,605.4,1.497]
[1740923368084,5.83045107,605.41,605.4,1.497]
[1740923368280,5.82502948,605.41,605.4,1.497]
[1740923370185,2.82357329,605.41,605.4,1.497]
[1740923370382,4.40719684,605.41,605.4,1.497]
[1740923373584,2.68194772,605.41,605.4,1.497]
[1740923373785,4.09688737,605.7,605.4,1.497]
[1740923373984,1.72499256,605.44,605.4,1.497]
[1740923374387,4.09546005,605.67,605.4,1.497]
[1740923374586,1.72497119,605.46,605.4,1.497]
[1740923374783,2.6805204,605.45,605.4,1.497]
[1740923374987,1.58219623,605.44,605.4,1.497]
[1740923375187,2.82328111,605.45,605.4,1.497]
[1740923375383,1.58219623,605.44,605.27,0.558]
[1740923375783,1.58219623,605.44,605.04,1.618]
[1740923375983,1.41493965,605.44,605.04,1.618]
[1740923376185,2.51265005,605.44,605.04,1.618]
[1740923376390,2.6805204,605.44,605.04,1.618]
[1740923376582,1.58149828,605.43,605.04,1.618]
[1740923376787,2.82355191,605.44,605.04,1.618]
[1740923376983,1.58149828,605.43,605.04,1.618]
[1740923377388,2.67982245,605.43,605.04,1.618]
[1740923377590,1.58149828,605.42,605.04,1.618]
[1740923377790,4.09393623,605.43,605.04,1.618]
[1740923378091,1.09832417,605.42,605.04,1.618]
[1740923378487,1.58149828,605.43,605.04,3.565]
[1740923378488,4.09346387,605.43,605.04,3.565]
[1740923378691,2.67982245,605.43,605.04,3.565]
[1740923378990,2.67982245,605.43,605.04,4.123]
[1740923379594,1.58149828,605.42,605.04,4.123]
[1740923379787,2.99513921,605.53,605.04,4.123]
[1740923379987,1.58121924,605.52,605.04,4.123]
[1740923380291,1.09832417,605.52,605.04,4.123]
[1740923380690,1.58124612,605.58,605.04,4.123]
[1740923380888,1.72495694,605.59,605.04,4.123]
[1740923381392,1.09832417,605.58,605.04,4.123]
[1740923381588,2.67957029,605.58,605.04,4.123]
[1740923381787,1.58124612,605.57,605.04,4.123]
[1740923381988,2.67957029,605.58,605.04,4.123]
[1740923383894,4.09336376,605.58,605.04,4.123]
[1740923384095,1.41375815,605.57,605.04,4.123]
[1740923384288,1.09832417,605.57,605.04,4.123]
[1740923385890,2.67953157,605.57,605.04,4.123]
[1740923386096,3.30619996,605.56,605.04,4.123]
[1740923386295,2.99496555,605.55,605.04,4.123]
[1740923386690,1.09832417,605.54,605.04,4.123]
[1740923388599,2.67932996,605.55,605.04,4.123]
[1740923388799,1.58100579,605.54,605.04,4.123]
[1740923388993,1.09832417,605.55,605.04,4.123]
[1740923389201,1.58100579,605.58,605.04,4.123]
[1740923389497,1.72493556,605.59,605.04,4.123]
[1740923389698,1.09832417,605.58,605.04,4.123]
[1740923389892,2.67994087,605.58,605.04,4.123]
[1740923390092,1.5816167,605.57,605.04,4.123]
[1740923390292,1.5816167,605.58,605.04,4.123]
[1740923390493,1.09832417,605.58,605.04,4.123]
[1740923390898,1.72493556,605.59,605.04,4.123]
[1740923391699,2.99611481,605.8,605.04,4.123]
[1740923391896,1.72483582,605.64,605.04,4.123]
[1740923392102,1.09832417,605.63,605.04,4.123]